[Event "NC World Masters 2022"]
[Site "Dortmund"]
[Date "2022.07.24"]
[Round "6.2"]
[White "Kollars, Dmitrij"]
[Black "Fridman, Daniel"]
[Result "1-0"]
[ECO "C28"]
[WhiteElo "2648"]
[BlackElo "2599"]
[Annotator "TA"]
[PlyCount "119"]
[EventDate "2022.07.18"]
[EventType "tourn"]
[EventCountry "GER"]
[SourceTitle "playchess.com"]
[Source "ChessBase"]
[SourceQuality "1"]
[TimeControl "40/5400+30:1800+30"]

{[%evp 9,119,-7,9,13,5,4,13,23,37,27,27,0,25,23,18,12,14,14,14,10,40,-16,0,0,0,0,0,0,0,0,0,0,0,0,0,0,16,0,0,24,46,52,58,58,58,58,118,118,117,119,111,128,147,141,142,116,124,125,127,132,134,127,131,128,139,66,65,65,81,84,91,103,138,138,138,138,138,39,39,39,120,120,118,138,310,308,308,299,310,310,310,310,310,304,304,289,635,631,1500,1500,1500,1500,1471,1471,1376,1367,1415,1247,1174,1137,769,711]} 1. e4 {[%emt 0:00:12]} e5 {[%emt 0:00:06]} 2. Bc4 {[%emt 0:00:15]} Nf6 {[%emt 0:00:15]} 3. d3 {[%emt 0:00:54]} Nc6 {[%emt 0:00:08]} 4. Nc3 {[%emt 0:00:38]} Bb4 {[%emt 0:00:18]} 5. Bd2 {[%emt 0:00:27]} d6 {[%emt 0:01:02]} 6. a3 {[%emt 0:00:35] C28: Vienna Game: 2...Nf6 3 Bc4 Nc6.} Bxc3 {[%emt 0:00:42]} 7. Bxc3 {[%emt 0:00:06]} Be6 {[%emt 0:00:13]} 8. Bb5 {[%emt 0:02:30] [#] The position is equal.} Nd7 $146 {[%emt 0:06:26]} ({Predecessor:} 8... O-O 9. Ne2 Ne7 10. O-O a6 11. Ba4 b5 12. Bb3 Bxb3 13. cxb3 Ng6 14. f4 Ng4 {½-½ (49) Sofiev,A-Redsven,R Helsinki 2003}) 9. Bxc6 {[%emt 0:06:43]} bxc6 {[%emt 0:00:07]} 10. Qh5 {[%emt 0:02:38][%cal Of2f4]} Qf6 {[%emt 0:07:32]} 11. Ne2 {[%emt 0:08:31][%cal Of2f4]} Qg6 {[%emt 0:00:11]} 12. Qxg6 {[%emt 0:06:03]} hxg6 {[%emt 0:00:23]} 13. f4 {[%emt 0:00:10]} f6 {[%emt 0:01:18]} 14. Kd2 {[%emt 0:05:35]} a5 {[%emt 0:02:16]} 15. d4 {[%emt 0:03:59]} (15. a4 $14) 15... exf4 {[%emt 0:05:29]} 16. Nxf4 {[%emt 0:00:09]} Bf7 {[%emt 0:01:29]} 17. h4 {[%emt 0:06:25]} c5 {[%emt 0:00:10]} 18. d5 {[%emt 0:05:04]} a4 {[%emt 0:04:21]} 19. g4 {[%emt 0:00:22][%cal Bg2g4,Bg4g5][%mdl 32]} Kf8 {[%emt 0:02:17]} 20. Ke3 {[%emt 0:11:24]} Re8 {[%emt 0:02:30]} 21. Kf3 {[%emt 0:00:27]} Ne5+ {[%emt 0:07:36]} 22. Kg3 {[%emt 0:00:31]} Nc4 {[%emt 0:01:24]} 23. Rae1 {[%emt 0:02:04]} Ke7 {[%emt 0:06:06]} 24. g5 {[%emt 0:01:59]} Rb8 {[%emt 0:00:17]} 25. Rhf1 {[%emt 0:03:09]} Rhf8 {[%emt 0:01:46]} 26. Nd3 {[%emt 0:02:37][%cal Rg5f6]} Ne5 {[%emt 0:02:13]} 27. Rf2 {[%emt 0:02:04]} Nxd3 {[%emt 0:05:54]} ({Better is} 27... Nd7 $14) 28. gxf6+ $16 {[%emt 0:01:51]} gxf6 {[%emt 0:00:07]} 29. Bxf6+ {[%emt 0:00:05]} Kd7 {[%emt 0:00:50]} 30. cxd3 {[%emt 0:00:09] [#] Black must now prevent Bg7.} Bg8 {[%emt 0:10:10]} 31. Ref1 {[%emt 0:01:51] White is more active.} Rfe8 {[%emt 0:04:53]} 32. Rf4 {[%emt 0:02:58]} c6 {[%emt 0:00:41]} 33. dxc6+ {[%emt 0:00:36]} Kxc6 {[%emt 0:00:06]} 34. Bc3 {[%emt 0:01:25]} Rbd8 {[%emt 0:02:14]} 35. Rg4 {[%emt 0:04:25]} Bb3 {[%emt 0:03:05]} 36. Rxg6 {[%emt 0:13:00]} Bc2 {[%emt 0:00:07]} 37. Rf4 {[%emt 0:01:19]} ({White should try} 37. Rf3 $16) 37... Bxd3 $14 {[%emt 0:00:31]} 38. Kf3 {[%emt 0:00:25]} Kb5 {[%emt 0:01:31]} 39. Ke3 {[%emt 0:03:14]} Bc2 {[%emt 0:02:34]} 40. Rg2 $36 {[%emt 0:00:35][%mdl 2048] White has strong initiative.} Bb3 {[%emt 0:01:17]} 41. h5 {[%emt 0:07:37]} d5 {[%emt 0:06:36] [#] Threatens to win with ...d4+.} 42. Bf6 {[%emt 0:00:14]} Rd7 {[%emt 0:03:33]} 43. Rg7 {[%emt 0:04:16]} (43. h6 $16) 43... Rxg7 {[%emt 0:03:05]} 44. Bxg7 {[%emt 0:00:03][%mdl 4096] Endgame KRB-KRB} Bc2 {[%emt 0:00:10]} (44... d4+ $14 45. Kd2 Bg8) 45. e5 $16 {[%emt 0:00:09]} d4+ {[%emt 0:12:53]} 46. Kd2 {[%emt 0:00:09]} Bb3 {[%emt 0:00:12] This costs Black the game.} (46... Bh7 $16) 47. Rg4 $18 {[%emt 0:04:51] Hoping for h6.} Be6 {[%emt 0:03:26]} 48. Rg5 {[%emt 0:00:59]} Bd5 {[%emt 0:05:48]} 49. h6 {[%emt 0:01:25] Strongly threatening h7.} Be4 {[%emt 0:00:10]} 50. Bf6 {[%emt 0:00:09]} Kc6 {[%emt 0:01:51]} 51. Rg7 {[%emt 0:02:31]} Rb8 {[%emt 0:00:08]} 52. Kc1 {[%emt 0:00:44]} Rb3 $2 {[%emt 0:00:11]} (52... Rb7 53. Rxb7 Kxb7) 53. e6 {[%emt 0:03:22] White is clearly winning.} Rh3 {[%emt 0:02:29]} 54. e7 {[%emt 0:00:14]} Kd7 {[%emt 0:00:07]} 55. e8=Q+ {[%emt 0:00:46]} Kxe8 {[%emt 0:00:07]} 56. Re7+ {[%emt 0:00:03]} Kf8 {[%emt 0:00:08]} 57. Rxe4 {[%emt 0:00:06]} Rxh6 {[%emt 0:00:15]} 58. Be7+ {[%emt 0:00:16]} Kf7 {[%emt 0:00:05]} 59. Bxc5 {[%emt 0:00:14]} Rc6 {[%emt 0:00:06]} 60. Re5 {[%emt 0:00:07] Weighted Error Value: White=0.10 (very precise) /Black=0.21 (precise)} 1-0